bitfinex/quotes_SOLUSD_20250719
["timestamp","ask_amount","ask_price","bid_price","bid_amount"]
[1752901053761,2.58904359,177.4,177.38,0.03]
[1752901055160,1.88904359,177.4,177.38,0.03]
[1752901055849,2.52904359,177.39,177.38,0.03]
[1752901057068,8.16633994,177.39,177.38,0.03]
[1752901061776,6.33729635,177.39,177.38,0.03]
[1752901061960,7.46633994,177.39,177.38,0.03]
[1752901062158,8.12633994,177.39,177.38,0.03]
[1752901071280,0.06,177.4,177.38,0.03]
[1752901071462,0.06,177.4,177.39,16.78468397]
[1752901081974,0.72,177.4,177.39,16.78468397]
[1752901083277,0.06,177.4,177.39,16.78468397]
[1752901083887,1.88904359,177.4,177.39,16.78468397]
[1752901084969,0.06,177.4,177.39,16.78468397]
[1752901086468,0.06,177.4,177.39,17.46468397]
[1752901086670,0.06,177.4,177.39,16.78468397]
[1752901087675,0.06,177.4,177.39,17.46468397]
[1752901092484,0.06,177.4,177.39,16.78468397]
[1752901096699,0.06,177.4,177.39,56.78468397]
[1752901098596,0.06,177.4,177.39,56.10468397]
[1752901100699,0.06,177.4,177.39,16.78468397]
[1752901111107,2.56904359,177.4,177.38,0.03]
[1752901111289,2.50904359,177.39,177.38,0.03]
[1752901115117,8.14633994,177.39,177.38,0.03]
[1752901138732,8.20633994,177.39,177.38,0.03]
[1752901142834,47.48633994,177.39,177.38,0.03]
[1752901144925,8.20633994,177.39,177.38,0.03]
[1752901145111,7.52633994,177.39,177.38,0.03]
[1752901145508,8.23633994,177.39,177.38,0.03]
[1752901146713,6.40729635,177.39,177.38,0.03]
[1752901146913,8.23633994,177.39,177.38,0.03]
[1752901149604,0.06,177.39,177.38,0.71]
[1752901151319,0.06,177.39,177.38,17.49468397]
[1752901157959,0.06,177.39,177.38,19.32372756]
[1752901158637,0.06,177.39,177.38,17.49468397]
[1752901158838,0.06,177.39,177.38,56.77468397]
[1752901160758,0.06,177.39,177.38,58.60372756]
[1752901165151,0.06,177.39,177.38,56.77468397]
[1752901165334,0.06,177.39,177.38,16.81468397]
[1752901165527,0.06,177.39,177.38,56.07468397]
[1752901165727,0.06,177.39,177.38,56.75468397]
[1752901168159,0.06,177.39,177.38,58.58372756]
[1752901169646,0.06,177.39,177.38,56.75468397]
[1752901174547,0.76,177.39,177.38,0.03]
[1752901174864,2.58904359,177.39,177.38,56.07468397]
[1752901175163,2.58904359,177.39,177.38,16.81468397]
[1752901176566,0.06,177.39,177.38,16.81468397]
[1752901176746,2.55904359,177.39,177.38,16.81468397]
[1752901177562,0.73,177.39,177.38,16.81468397]
[1752901184551,0.06,177.39,177.38,16.81468397]
[1752901192379,0.06,177.39,177.38,24.96134172]
[1752901193492,0.06,177.39,177.38,23.13229813]
[1752901194573,0.06,177.39,177.38,22.45229813]
[1752901194778,0.06,177.39,177.38,24.28134172]
[1752901196264,0.06,177.39,177.38,24.96134172]
[1752901201087,0.06,177.39,177.38,112.56134172]
[1752901201563,0.06,177.39,177.38,113.12510313]
[1752901202168,0.06,177.39,177.38,139.12510313]
[1752901202363,0.06,177.39,177.38,138.56134172]
[1752901203692,0.06,177.39,177.38,119.87751608]
[1752901203897,0.06,177.39,177.38,112.56134172]
[1752901204095,0.06,177.39,177.38,113.12510313]
[1752901205566,0.06,177.39,177.38,152.34510313]
[1752901205766,0.06,177.39,177.38,151.78134172]
[1752901208698,0.06,177.39,177.38,149.95229813]
[1752901209004,0.06,177.39,177.38,151.78134172]
[1752901211799,0.06,177.39,177.38,112.56134172]
[1752901212103,0.06,177.39,177.38,152.34510313]
[1752901212280,0.06,177.39,177.38,151.78134172]
[1752901215203,0.06,177.39,177.38,159.09751608]
[1752901215383,0.06,177.4,177.38,159.09751608]
[1752901215576,0.06,177.4,177.39,27.15363155]
[1752901216502,0.06,177.4,177.39,32.7909279]
[1752901219979,0.06,177.4,177.39,71.9909279]
[1752901220796,0.06,177.4,177.39,159.5909279]
[1752901220997,0.06,177.4,177.39,159.02719827]
[1752901221392,0.06,177.4,177.39,149.88198032]
[1752901221589,0.06,177.4,177.39,159.02719827]
[1752901231238,0.06,177.4,177.39,149.88198032]
[1752901231520,0.06,177.4,177.39,159.02719827]
[1752901235423,0.06,177.4,177.39,149.88198032]
[1752901235598,0.06,177.4,177.39,159.02719827]
[1752901243566,0.06,177.43,177.42,42.78468397]
[1752901243827,0.75,177.43,177.42,83.79372756]
[1752901244131,0.75,177.43,177.42,81.96468397]
[1752901244301,0.75,177.43,177.42,83.79372756]
[1752901245127,0.75,177.43,177.42,89.4300707]
[1752901247511,0.75,177.43,177.42,177.0300707]
[1752901249411,0.75,177.43,177.42,143.56468397]
[1752901249613,2.57904359,177.43,177.42,143.56468397]
[1752901249819,2.57904359,177.43,177.42,104.38468397]
[1752901250013,2.57904359,177.43,177.42,16.78468397]
[1752901252105,0.75,177.43,177.42,16.78468397]
[1752901252311,2.57904359,177.43,177.42,16.78468397]
[1752901252833,0.75,177.43,177.42,16.78468397]
[1752901253038,2.57904359,177.43,177.42,16.78468397]
[1752901253634,0.75,177.43,177.42,50.81370501]
[1752901254936,0.75,177.43,177.42,48.98466142]
[1752901255326,0.75,177.43,177.42,50.81370501]
[1752901256622,0.75,177.43,177.42,48.98466142]
[1752901256822,0.75,177.43,177.42,42.78468397]
[1752901257024,0.75,177.43,177.42,81.96468397]
[1752901257723,0.75,177.43,177.42,83.79372756]
[1752901259140,0.75,177.43,177.42,81.96468397]
[1752901259324,0.75,177.43,177.42,83.79372756]
[1752901262447,0.75,177.43,177.42,89.4300707]
[1752901262841,0.06,177.43,177.42,89.99370501]
[1752901264049,0.75,177.43,177.42,89.99370501]
[1752901265145,0.75,177.43,177.42,177.59370501]
[1752901265363,0.75,177.43,177.39,0.03]
[1752901265521,6.0953,177.42,177.39,0.03]
[1752901265726,0.75,177.43,177.4,1.82904359]
[1752901266032,1.82904359,177.41,177.4,16.78468397]
[1752901266371,2.49904359,177.41,177.4,16.78468397]
[1752901266726,2.49904359,177.41,177.39,0.03]
[1752901266926,2.49904359,177.4,177.39,0.03]
[1752901269560,0.67,177.4,177.39,0.03]
[1752901269927,0.67,177.4,177.39,26.03]
[1752901270128,0.67,177.42,177.39,44.64372756]
[1752901270330,0.67,177.41,177.39,82.15468397]
[1752901271459,0.67,177.41,177.4,16.78468397]
[1752901271631,1.82904359,177.42,177.4,16.78468397]
[1752901272332,0.67,177.41,177.4,16.78468397]
[1752901276940,0.73,177.43,177.4,25.28063879]
[1752901277127,0.73,177.43,177.42,16.78468397]
[1752901277450,0.06,177.43,177.42,16.78468397]
[1752901277660,2.91897625,177.43,177.42,16.78468397]
[1752901278027,3.58897625,177.43,177.42,16.78468397]
[1752901281222,3.58897625,177.43,177.4,56.10468397]
[1752901281442,0.67,177.42,177.4,56.10468397]
[1752901282041,2.91897625,177.43,177.4,56.10468397]
[1752901282244,3.58897625,177.43,177.4,56.10468397]
[1752901282655,0.67,177.42,177.4,56.10468397]
[1752901282841,0.67,177.42,177.4,61.74154872]
[1752901283225,0.06,177.43,177.4,64.60052497]
[1752901283646,0.73,177.43,177.4,61.74154872]
[1752901283846,0.73,177.43,177.4,64.60052497]
[1752901284225,0.06,177.43,177.4,65.28052497]
[1752901284443,0.06,177.43,177.41,3.53897625]
[1752901284733,0.06,177.43,177.42,39.3]
[1752901285938,0.73,177.43,177.42,39.3]
[1752901289854,0.06,177.43,177.42,39.3]
[1752901292337,0.73,177.43,177.42,39.3]
[1752901292868,0.06,177.43,177.42,39.3]
[1752901293365,0.06,177.43,177.42,61.72102711]
[1752901294665,0.06,177.43,177.42,64.58000336]
[1752901295165,0.06,177.43,177.42,63.55010675]
[1752901300283,0.75,177.43,177.42,61.72102711]
[1752901302601,0.75,177.43,177.42,56.08468397]
[1752901315874,0.06,177.43,177.42,56.08468397]
[1752901316077,0.06,177.43,177.42,61.72102711]
[1752901316495,0.06,177.43,177.42,56.08468397]
[1752901316903,0.75,177.43,177.42,56.08468397]
[1752901317067,0.06,177.43,177.42,61.72102711]
[1752901321589,0.06,177.43,177.42,63.55010675]
[1752901321908,0.06,177.43,177.42,61.72102711]
[1752901322092,0.75,177.43,177.42,61.72102711]
[1752901323286,0.06,177.43,177.42,61.72102711]
[1752901325402,0.75,177.43,177.42,61.72102711]
[1752901325698,0.06,177.43,177.42,61.72102711]
[1752901328803,0.06,177.43,177.42,63.55010675]
[1752901329703,0.06,177.43,177.42,64.22010675]
[1752901330409,0.06,177.43,177.42,89.55010675]
[1752901330608,0.06,177.43,177.42,87.72102711]
[1752901330800,0.77,177.43,177.42,89.55010675]
[1752901332209,0.06,177.43,177.42,89.55010675]
[1752901333711,0.06,177.43,177.42,87.72102711]
[1752901336414,0.06,177.43,177.42,88.39102711]
[1752901336801,0.06,177.43,177.42,90.22010675]
[1752901337810,0.06,177.43,177.42,89.55010675]
[1752901338622,0.06,177.43,177.42,87.72102711]
[1752901338798,0.06,177.43,177.42,89.55010675]
[1752901344019,0.06,177.43,177.42,87.72102711]
[1752901345116,0.77,177.43,177.42,87.72102711]
[1752901346313,0.06,177.43,177.42,87.72102711]
[1752901347301,0.77,177.43,177.42,82.08468397]
[1752901347519,0.77,177.43,177.42,81.98468397]
[1752901348708,0.06,177.43,177.42,81.98468397]
[1752901349408,0.06,177.43,177.42,87.62102711]
[1752901352306,0.06,177.43,177.42,90.12010675]
[1752901353203,0.06,177.43,177.42,87.62102711]
[1752901353607,0.77,177.43,177.42,87.62102711]
[1752901357406,0.77,177.43,177.42,81.98468397]
[1752901362036,0.06,177.43,177.42,81.98468397]
[1752901362239,0.06,177.43,177.42,87.62102711]
[1752901362826,0.06,177.43,177.42,90.13010675]
[1752901366125,0.06,177.43,177.42,89.45010675]
[1752901368651,0.06,177.43,177.42,177.05010675]
[1752901369341,0.77,177.43,177.42,169.58468397]
[1752901374549,0.77,177.43,177.42,81.98468397]
[1752901377921,8.23510511,177.43,177.4,0.03]
[1752901378128,1.82907964,177.41,177.4,0.03]
[1752901378452,9.1453982,177.41,177.4,0.03]
[1752901378633,9.1453982,177.41,177.39,0.03]
[1752901378832,2.53907964,177.4,177.39,0.03]
[1752901379056,5.63729635,177.39,177.38,0.03]
[1752901379255,6.34729635,177.39,177.38,0.03]
[1752901383436,8.17637599,177.39,177.38,0.03]
[1752901383641,9.82407599,177.39,177.38,0.03]
[1752901384653,4.18677964,177.39,177.38,0.03]
[1752901384951,2.53907964,177.39,177.38,0.03]
[1752901386630,0.71,177.39,177.38,0.03]
[1752901386966,2.53907964,177.39,177.38,0.03]
[1752901387143,8.17637599,177.39,177.38,0.03]
[1752901387946,15.49269455,177.39,177.38,0.03]
[1752901388758,8.17637599,177.39,177.38,0.03]
[1752901388953,9.20942011,177.39,177.38,0.03]
[1752901389852,12.07154387,177.39,177.38,0.03]
[1752901391157,13.65684387,177.39,177.38,0.03]
[1752901391455,5.72424752,177.37,177.36,0.03]
[1752901391655,1.5853,177.36,177.34,0.03]
[1752901391857,1.5853,177.36,177.25,0.2]
[1752901391858,4.171,177.35,177.25,0.2]
[1752901392061,5.72424752,177.26,177.25,0.2]
[1752901392254,5.72424752,177.26,177.23,0.03]
[1752901392255,6.38424752,177.26,177.23,0.03]
[1752901392457,5.72424752,177.25,177.23,0.03]
[1752901392657,0.66,177.25,177.23,0.03]
[1752901392856,2.86212376,177.27,177.23,0.03]
[1752901393155,2.86212376,177.28,177.25,16.78468397]
[1752901393460,2.86212376,177.28,177.26,0.68]
[1752901393961,2.86212376,177.28,177.24,17.46468397]
[1752901394131,2.86212376,177.28,177.25,0.68]
[1752901394631,2.86212376,177.28,177.26,16.78468397]
[1752901395251,2.86212376,177.29,177.26,17.46468397]
[1752901395631,2.86212376,177.31,177.28,16.78468397]
[1752901395845,2.86212376,177.31,177.28,17.46468397]
[1752901396039,5.6395257,177.32,177.28,17.46468397]
[1752901396362,9.16164946,177.32,177.28,17.46468397]
[1752901396742,6.2995257,177.32,177.28,17.46468397]
[1752901396943,9.16164946,177.32,177.28,17.46468397]
[1752901397144,9.16164946,177.32,177.28,20.32680773]
[1752901397338,3.52212376,177.32,177.28,20.32680773]
[1752901397857,8.50135087,177.33,177.29,0.68]
[1752901398058,2.86212376,177.33,177.3,0.68]
[1752901398256,2.86212376,177.34,177.31,0.68]
[1752901398743,3.52212376,177.34,177.3,16.78468397]
[1752901398943,3.52212376,177.34,177.3,20.32680773]
[1752901400157,9.16101766,177.34,177.3,20.32680773]
[1752901401462,3.52212376,177.33,177.3,16.78468397]
[1752901401974,3.52212376,177.33,177.29,20.32680773]
[1752901402833,0.66,177.33,177.3,2.86212376]
[1752901403037,8.50101766,177.34,177.3,3.54212376]
[1752901403253,9.16071293,177.35,177.32,16.78468397]
[1752901405238,6.29858917,177.35,177.32,16.78468397]
[1752901405440,9.16071293,177.35,177.32,16.78468397]
[1752901406173,5.63826147,177.36,177.33,0.68]
[1752901406862,5.63826147,177.36,177.32,19.64680773]
[1752901406863,8.50008195,177.37,177.34,0.68]
[1752901407366,9.16008195,177.37,177.33,16.78468397]
[1752901407545,9.16008195,177.37,177.33,17.46468397]
[1752901407972,2.86212376,177.36,177.33,17.46468397]
[1752901408466,9.16041443,177.36,177.33,17.46468397]
[1752901408959,9.16041443,177.36,177.33,16.78468397]
[1752901409153,6.29829067,177.36,177.33,16.78468397]
[1752901409356,3.52212376,177.37,177.33,17.46468397]
[1752901409759,9.16021226,177.37,177.33,17.46468397]
[1752901411046,9.16021226,177.37,177.33,20.32680773]
[1752901411474,6.2980885,177.37,177.33,20.32680773]
[1752901411658,6.2980885,177.37,177.34,0.68]
[1752901411659,9.16021226,177.37,177.34,0.68]
[1752901411858,6.2980885,177.37,177.34,0.68]
[1752901412054,8.55942011,177.39,177.36,16.78468397]
[1752901412271,8.55942011,177.39,177.36,17.46468397]
[1752901412701,0.06,177.39,177.37,0.68]
[1752901412986,0.06,177.39,177.38,3.54212376]
[1752901413580,0.06,177.39,177.38,16.78468397]
[1752901416074,0.06,177.39,177.38,20.34680773]
[1752901416270,0.06,177.39,177.38,17.48468397]
[1752901418367,0.06,177.39,177.38,20.34680773]
[1752901418565,0.06,177.39,177.38,17.48468397]
[1752901418873,0.06,177.39,177.38,20.34680773]
[1752901419662,0.06,177.39,177.38,19.64680773]
[1752901420264,0.06,177.39,177.38,20.34680773]
[1752901422097,0.06,177.39,177.38,17.48468397]
[1752901422574,0.06,177.39,177.38,16.78468397]
[1752901426862,0.06,177.39,177.38,17.48468397]
[1752901428588,0.06,177.39,177.38,16.78468397]
[1752901430485,0.06,177.39,177.38,17.48468397]
[1752901431510,0.06,177.39,177.38,20.34680773]
[1752901431869,0.06,177.39,177.38,59.92680773]
[1752901432676,0.06,177.39,177.38,56.36468397]
[1752901432877,0.06,177.39,177.38,16.78468397]
[1752901433088,3.60212376,177.39,177.38,16.78468397]
[1752901433372,9.23942011,177.39,177.38,16.78468397]
[1752901442981,0.06,177.39,177.38,16.78468397]
[1752901443184,0.06,177.39,177.38,20.34680773]
[1752901448312,0.06,177.39,177.38,107.94680773]
[1752901448603,0.06,177.39,177.38,108.51056914]
[1752901450587,0.06,177.39,177.38,114.1481833]
[1752901451805,0.06,177.39,177.38,117.01030706]
[1752901451998,0.06,177.39,177.38,116.44654565]
[1752901452593,0.06,177.39,177.38,117.99104565]
[1752901453110,0.01004351,177.39,177.38,117.99104565]
[1752901460396,0.01004351,177.39,177.38,115.12892189]
[1752901460596,0.01004351,177.39,177.38,115.6926833]
[1752901461004,0.01004351,177.39,177.38,150.00605954]
[1752901461228,0.01004351,177.39,177.38,153.01442189]
[1752901462113,0.01004351,177.39,177.38,155.87654565]
[1752901462297,0.01004351,177.39,177.38,155.90654565]
[1752901462705,0.01004351,177.39,177.38,153.04442189]
[1752901463306,0.01004351,177.39,177.38,150.18229813]
[1752901463507,0.01004351,177.39,177.38,153.04442189]
[1752901466194,0.01004351,177.39,177.38,155.90654565]
[1752901467414,0.01004351,177.39,177.38,153.04442189]
[1752901468594,0.01004351,177.39,177.38,150.18229813]
[1752901468796,0.01004351,177.39,177.38,153.04442189]
[1752901472212,0.01004351,177.39,177.38,155.90654565]
[1752901478127,0.76,177.43,177.42,42.78468397]
[1752901478299,0.76,177.43,177.42,172.60680773]
[1752901483125,0.76,177.43,177.42,169.74468397]
[1752901483425,0.76,177.43,177.42,172.60680773]
[1752901484920,0.76,177.43,177.42,171.57365678]
[1752901486517,0.76,177.43,177.42,169.74468397]
[1752901486722,0.76,177.43,177.42,171.57365678]
[1752901493443,0.76,177.43,177.42,169.74468397]
[1752901493650,0.76,177.43,177.42,171.57365678]
[1752901493840,0.76,177.43,177.42,169.74468397]
[1752901494021,0.76,177.43,177.42,143.74468397]
[1752901494222,0.76,177.43,177.42,104.38468397]
[1752901500335,2.58897281,177.43,177.42,104.38468397]
[1752901501255,0.76,177.43,177.42,104.38468397]
[1752901501854,0.76,177.43,177.41,16.78468397]
[1752901503656,0.76,177.43,177.41,18.61365678]
[1752901504650,0.76,177.43,177.41,16.78468397]
[1752901506468,0.76,177.43,177.41,18.61365678]
[1752901506636,0.71,177.42,177.41,18.61365678]
[1752901507748,0.71,177.42,177.41,106.21365678]
[1752901507949,0.71,177.42,177.41,104.38468397]
[1752901511660,6.34634314,177.42,177.41,104.38468397]
[1752901512864,0.71,177.42,177.41,104.38468397]
[1752901513663,0.71,177.42,177.41,16.78468397]
[1752901514953,0.77,177.43,177.41,16.78468397]
[1752901515937,0.06,177.43,177.41,16.78468397]
[1752901516141,0.71,177.42,177.41,16.78468397]
[1752901516649,0.77,177.43,177.41,16.78468397]
[1752901516849,0.06,177.43,177.41,18.61365678]
[1752901517364,0.77,177.43,177.41,18.61365678]
[1752901517544,0.71,177.42,177.41,16.78468397]
[1752901527779,6.34634314,177.42,177.41,16.78468397]
[1752901527976,5.63634314,177.42,177.41,16.78468397]
[1752901528167,6.34634314,177.42,177.41,16.78468397]
[1752901529459,0.71,177.42,177.41,16.78468397]
[1752901530975,6.4060932,177.43,177.41,16.78468397]
[1752901531180,0.71,177.42,177.41,16.78468397]
[1752901532364,0.06,177.43,177.41,16.78468397]
[1752901532564,0.77,177.43,177.41,16.78468397]
[1752901533089,0.06,177.43,177.41,16.78468397]
[1752901533273,0.71,177.42,177.41,16.78468397]
[1752901533880,0.71,177.42,177.4,18.61365678]
[1752901534385,0.71,177.41,177.4,18.61365678]
[1752901534884,0.71,177.41,177.4,16.78468397]
[1752901537491,0.65,177.42,177.4,16.78468397]
[1752901539790,2.47897281,177.41,177.39,0.03]
[1752901539995,2.47897281,177.41,177.39,16.81468397]
[1752901539996,1.82897281,177.4,177.39,16.81468397]
[1752901540174,2.47897281,177.4,177.39,0.03]
[1752901541785,8.11595138,177.4,177.39,0.03]
[1752901544395,15.43184262,177.4,177.39,0.03]
[1752901548898,15.43184262,177.4,177.38,0.03]
[1752901549091,9.79486405,177.39,177.35,0.03]
[1752901549287,40.46,177.38,177.35,0.03]
[1752901549483,9.14486405,177.36,177.35,0.03]
[1752901549986,9.79486405,177.36,177.35,0.03]
[1752901550190,15.43311393,177.36,177.35,0.03]
[1752901550805,18.23795509,177.36,177.35,0.03]
[1752901552405,22.74282542,177.36,177.35,0.03]
[1752901554900,9.09309104,177.36,177.35,0.03]
[1752901555114,58.63795509,177.36,177.35,0.03]
[1752901555528,63.16313177,177.36,177.35,0.03]
[1752901558815,49.49309104,177.36,177.35,0.03]
[1752901559102,58.63795509,177.36,177.35,0.03]
[1752901560326,18.23795509,177.36,177.35,0.03]
[1752901560701,51.32206385,177.36,177.35,0.03]
[1752901560919,58.63795509,177.36,177.35,0.03]
[1752901573322,58.63795509,177.36,177.31,0.03]
[1752901573625,1.82897281,177.32,177.31,0.03]
[1752901573823,54.09571954,177.32,177.31,0.03]
[1752901574046,54.81571954,177.32,177.31,0.03]
[1752901574957,59.7352413,177.32,177.31,0.03]
[1752901576441,60.4552413,177.32,177.31,0.03]
[1752901577962,58.62626849,177.32,177.31,0.03]
[1752901578169,60.4552413,177.32,177.31,0.03]
[1752901584164,67.77113254,177.32,177.31,0.03]
[1752901584745,67.77113254,177.32,177.3,0.2]
[1752901584966,9.86486405,177.31,177.3,0.2]
[1752901585861,15.50470387,177.31,177.3,0.2]
[1752901590583,5.63983982,177.31,177.3,0.2]
[1752901590763,47.62881263,177.31,177.3,0.2]
[1752901591075,13.79571954,177.32,177.3,0.91]
[1752901591252,53.97571954,177.32,177.3,0.91]
[1752901591576,11.96674673,177.32,177.31,17.49468397]
[1752901591956,11.96674673,177.32,177.31,19.32365678]
[1752901592163,11.96674673,177.32,177.31,17.49468397]
[1752901596403,14.82890756,177.32,177.31,16.78468397]
[1752901596678,11.96674673,177.32,177.31,16.78468397]
[1752901597177,20.46842932,177.32,177.3,0.2]
[1752901597359,3.57216083,177.31,177.3,0.2]
[1752901597960,6.43432166,177.31,177.3,0.2]
[1752901598467,12.07416148,177.31,177.3,0.2]
[1752901600782,9.21200065,177.31,177.3,0.2]
[1752901602097,12.07416148,177.31,177.3,0.2]
[1752901606783,6.34983982,177.31,177.3,0.2]
[1752901606983,9.21200065,177.31,177.3,0.2]
[1752901607197,12.07416148,177.31,177.3,0.2]
[1752901611495,6.34983982,177.31,177.3,0.2]
[1752901611685,12.07416148,177.31,177.3,0.2]
[1752901612903,12.13416148,177.31,177.3,0.2]
[1752901613101,5.69983982,177.31,177.3,0.2]
[1752901613296,48.58200065,177.31,177.3,0.2]
[1752901615705,49.29200065,177.31,177.3,0.2]
[1752901616784,48.58200065,177.31,177.3,0.2]
[1752901621795,49.29200065,177.31,177.3,0.2]
[1752901622707,46.42983982,177.31,177.3,0.2]
[1752901622899,52.15416148,177.31,177.3,0.2]
[1752901623085,55.59601682,177.31,177.3,0.2]
[1752901625112,52.15879894,177.31,177.3,0.2]
[1752901631010,52.15879894,177.31,177.3,1e-08]
[1752901637097,52.15879894,177.31,177.3,0.03000001]
[1752901639210,45.53983982,177.31,177.3,0.03000001]
[1752901639399,5.69983982,177.31,177.3,0.75000001]
[1752901639599,0.06,177.31,177.3,0.75000001]
[1752901640825,0.06,177.31,177.3,17.53468398]
[1752901641840,0.06,177.31,177.3,23.2636431]
[1752901642124,0.06,177.31,177.3,28.90380102]
[1752901642333,0.06,177.31,177.3,142.50380102]
[1752901643898,0.06,177.31,177.3,136.7748419]
[1752901644136,0.06,177.31,177.3,142.50380102]
[1752901652323,0.06,177.31,177.3,136.8636431]
[1752901653718,0.06,177.31,177.3,107.99916354]
[1752901654610,0.06,177.31,177.3,104.41468398]
[1752901654815,0.06,177.31,177.3,107.27916354]
[1752901655902,0.06,177.31,177.3,104.41468398]
[1752901656102,0.06,177.31,177.3,16.81468398]
[1752901657121,0.06,177.31,177.3,20.37916354]
[1752901658016,0.06,177.31,177.3,23.2436431]
[1752901658401,0.06,177.31,177.3,17.51468398]
[1752901658601,0.06,177.31,177.3,23.2436431]
[1752901659619,0.06,177.31,177.3,17.51468398]
[1752901659821,0.06,177.31,177.3,20.37916354]
[1752901662402,0.75,177.31,177.3,16.81468398]
[1752901663301,0.06,177.31,177.3,16.81468398]
[1752901665230,0.75,177.31,177.3,16.81468398]
[1752901667025,0.06,177.31,177.3,16.81468398]
[1752901668513,0.75,177.31,177.3,16.81468398]
[1752901669613,0.06,177.31,177.3,16.81468398]
[1752901678129,0.75,177.31,177.3,16.81468398]
[1752901679455,6.38983982,177.31,177.3,16.81468398]
[1752901681148,8.22181091,177.31,177.3,0.03000001]
[1752901681871,15.54969527,177.31,177.3,1e-08]
[1752901682073,29.64929484,177.31,177.26,0.03]
[1752901682358,1.83197109,177.27,177.26,0.03]
[1752901682758,2.52197109,177.27,177.26,0.03]
[1752901683141,6.33111242,177.27,177.26,0.03]
[1752901683337,8.16308351,177.27,177.26,0.03]
[1752901684754,15.49096787,177.27,177.26,0.03]
[1752901684957,12.06312588,177.27,177.26,0.03]
[1752901685137,12.06312588,177.27,177.26,1e-08]
[1752901686656,26.0,177.25,177.23,0.03]
[1752901686883,1.614,177.26,177.2,1e-08]
[1752901686884,15.73201346,177.22,177.2,1e-08]
[1752901687038,5.73201346,177.21,177.2,1e-08]
[1752901687240,69.22600673,177.21,177.2,1e-08]
[1752901687938,72.09201346,177.21,177.2,1e-08]
[1752901688742,77.73503586,177.21,177.2,1e-08]
[1752901688941,51.73503586,177.21,177.2,1e-08]
[1752901689135,61.73503586,177.21,177.2,1e-08]
[1752901689364,26.0,177.18,177.12,0.2]
[1752901689543,2.86600673,177.13,177.12,0.2]
[1752901689960,3.54600673,177.13,177.12,0.2]
[1752901690160,0.68,177.13,177.12,0.2]
[1752901690366,3.54600673,177.13,177.12,0.2]
[1752901690746,9.19157777,177.13,177.12,0.2]
[1752901694864,5.64557104,177.13,177.12,0.2]
[1752901695168,21.63272876,177.13,177.12,0.2]
[1752901695559,22.31272876,177.13,177.12,0.2]
[1752901696765,25.11161779,177.13,177.12,0.2]
[1752901698355,24.43161779,177.13,177.12,0.2]
[1752901698885,21.56561106,177.13,177.12,0.2]
[1752901699181,24.43161779,177.13,177.12,0.2]
[1752901699688,25.11161779,177.13,177.12,0.2]
[1752901704386,22.24561106,177.13,177.12,0.2]
[1752901704697,24.43161779,177.13,177.12,0.2]
[1752901705050,25.11161779,177.13,177.12,0.2]
[1752901709384,24.43161779,177.13,177.12,0.2]
[1752901712493,25.11161779,177.13,177.12,0.2]
[1752901712786,24.43161779,177.13,177.12,0.2]
[1752901712985,23.40180869,177.13,177.12,0.2]
[1752901713290,24.08180869,177.13,177.12,0.2]
[1752901714669,21.56561106,177.13,177.12,0.2]
[1752901714867,23.40180869,177.13,177.12,0.2]
[1752901715287,24.08180869,177.13,177.12,0.2]
[1752901718400,24.11180869,177.13,177.12,0.2]
[1752901720690,22.27561106,177.13,177.12,0.2]
[1752901720889,24.11180869,177.13,177.12,0.2]
[1752901727203,31.45659921,177.13,177.12,1e-08]
[1752901727500,28.65771018,177.13,177.12,1e-08]
[1752901730501,31.4982906,177.13,177.12,1e-08]
[1752901736090,23.44350008,177.13,177.12,1e-08]
[1752901736515,24.15350008,177.13,177.12,1e-08]
[1752901736918,28.71725418,177.13,177.12,1e-08]